[Event "European Women-ch 2023"]
[Site "Petrovac"]
[Date "2023.03.27"]
[Round "9.24"]
[White "Donghvani, Nia"]
[Black "Lehaci, Miruna-Daria"]
[Result "0-1"]
[ECO "B67"]
[WhiteElo "2025"]
[BlackElo "2202"]
[Annotator "TA"]
[PlyCount "88"]
[EventDate "2023.03.15"]
[EventType "swiss"]
[EventCountry "MNE"]
[SourceTitle "playchess.com"]
[Source "ChessBase"]
[SourceQuality "1"]
[TimeControl "40/5400+30:1800+30"]

{[%evp 24,88,26,28,43,50,47,0,11,16,19,16,84,75,135,0,60,-3,8,0,0,6,0,-62,-51,-64,-19,-21,-11,-87,-76,-75,-64,-94,-93,-90,-71,-86,-83,-130,-126,-192,-177,-464,-470,-563,-566,-735,-672,-1329,-1300,-6207,-6207,-6093,-5768,-5097,-2074,-29986,-29979,-29984,-29985,-29990,-29991,-29991,-29986,-29986,-29987]} 1. e4 {[%emt 0:00:02]} c5 {[%emt 0:00:14]} 2. Nf3 {[%emt 0:00:04]} Nc6 {[%emt 0:00:03]} 3. d4 {[%emt 0:00:02]} cxd4 {[%emt 0:00:04]} 4. Nxd4 {[%emt 0:00:03]} Nf6 {[%emt 0:00:05]} 5. Nc3 {[%emt 0:01:07]} d6 {[%emt 0:00:03]} 6. Bg5 {[%emt 0:00:21]} a6 {[%emt 0:00:05]} 7. Qd2 {[%emt 0:01:20]} e6 {[%emt 0:00:10]} 8. O-O-O {[%emt 0:00:18]} Bd7 {[%emt 0:00:04]} 9. f4 {[%emt 0:00:16]} b5 {[%emt 0:00:05]} 10. Bxf6 {[%emt 0:00:05]} gxf6 {[%emt 0:00:03]} 11. Kb1 {[%emt 0:00:03]} Qb6 {[%emt 0:00:07]} 12. Nxc6 {[%emt 0:00:36]} Bxc6 {[%emt 0:00:17]} 13. f5 {[%emt 0:00:04]} h5 {[%emt 0:00:04] B67: Sicilian: Richter-Rauzer: 7...a6 8 0-0-0 Bd7, lines without 9 f4 Be7.} 14. fxe6 {[%emt 0:01:37]} fxe6 {[%emt 0:00:04] [#]} 15. Qe2 $146 {[%emt 0:00:31][%cal Oc3d5]} ({Predecessor:} 15. Bd3 b4 16. Ne2 Bh6 17. Qe1 Qc5 18. Rf1 Ke7 19. b3 Bb5 20. Qh4 Bg5 21. Qh3 {0-1 Karjakin,S (2752)-Vidit,S (2726) Speed Chess Invitational blitz 2020 (3.6)}) 15... Kf7 {[%emt 0:04:09] White must now prevent ...b4. The position is equal.} 16. Qf3 {[%emt 0:19:50]} Qc5 {[%emt 0:03:48]} 17. Bd3 $1 {[%emt 0:07:51]} Bh6 {[%emt 0:07:08]} (17... a5 $11) 18. Rhf1 $16 {[%emt 0:19:02]} Bg5 {[%emt 0:07:16] [#]} (18... Bg7 $142) 19. Qh3 {[%emt 0:09:00]} ({White must play} 19. h4 $1 $16 {[%cal Rh4g5]} Bxh4 20. Nd5 exd5 21. exd5 Bxd5 22. Bg6+ Kxg6 23. Rxd5 (23. Qxd5 $2 {too greedy.} Qxd5 24. Rxd5 Bg3 $19)) 19... Qe5 {[%emt 0:09:30] [#]} (19... Rab8 $11) 20. Nd5 {[%emt 0:13:04]} Rae8 {[%emt 0:07:55]} ({But not} 20... exd5 21. exd5 Bxd5 22. Rde1 $16) 21. Nc7 {[%emt 0:02:44]} Rc8 $36 {[%emt 0:05:50][%cal Be8c8,Bc8c4,Bc4g4,Bg4e4,Be4e2][%mdl 2080] Black is pushing. The board is on fire.} 22. Nxa6 {[%emt 0:00:02] Threatening Rfe1.} Bxe4 {[%emt 0:02:37]} 23. Bxe4 {[%emt 0:06:07]} (23. Nb4 $11) 23... Qxe4 $15 {[%emt 0:00:11]} 24. Qb3 {[%emt 0:01:10]} d5 {[%emt 0:05:44]} 25. Nb4 {[%emt 0:03:56]} Qc4 {[%emt 0:02:20]} 26. Qxc4 {[%emt 0:02:17]} (26. Nd3 $11 Kg7 27. c3) 26... Rxc4 {[%emt 0:01:29]} 27. c3 {[%emt 0:00:03]} h4 {[%emt 0:03:53]} 28. Rf3 {[%emt 0:01:48] Black converts the advantage convincingly.} Rg4 {[%emt 0:03:36]} 29. Rf2 {[%emt 0:01:57]} Re4 {[%emt 0:05:13]} 30. Nc2 {[%emt 0:02:53]} f5 {[%emt 0:02:31]} 31. Nd4 {[%emt 0:01:30] [#]} ({Better is} 31. Rdf1) 31... b4 $1 $17 {[%emt 0:02:48][%mdl 512]} 32. Rf3 {[%emt 0:02:21]} (32. Nb5 $17 Bf4 33. cxb4) (32. Nf3 Be3) 32... Bf6 $19 {[%emt 0:01:20]} 33. Nb5 $2 {[%emt 0:00:14]} (33. Rfd3 {was worth a try.}) 33... Re2 {[%emt 0:01:30] ...Rb8 is the strong threat.} 34. Nd4 {[%emt 0:00:52]} Rxg2 {[%emt 0:02:50]} 35. cxb4 {[%emt 0:00:04]} Rxh2 {[%emt 0:00:05] And now ...h3 would win.} 36. b5 {[%emt 0:00:03]} h3 {[%emt 0:00:19] ...Rg2 would be deadly.} 37. b6 {[%emt 0:03:36]} Bxd4 {[%emt 0:02:05][%mdl 64] Deflection} 38. Rxd4 {[%emt 0:00:05][%mdl 4096] Endgame KRR-KRR} Rh1+ {[%emt 0:00:02]} 39. Kc2 {[%emt 0:00:04]} h2 {[%emt 0:00:04] ( -> ...Ra1)} 40. Rc3 {[%emt 0:00:00]} Rg1 {[%emt 0:00:00] Black mates.} 41. Rc7+ {[%emt 0:01:48]} Kf6 {[%emt 0:04:45]} 42. b7 {[%emt 0:01:28]} h1=Q {[%emt 0:00:26]} 43. Kb3 {[%emt 0:00:11]} Rb8 {[%emt 0:02:05]} 44. Rb4 {[%emt 0:00:19]} Rg7 {[%emt 0:00:24] Weighted Error Value: White=0.72/Black=0.12 (very precise)} 0-1

[Event "European Women-ch 2023"]
[Site "Petrovac"]
[Date "2023.03.27"]
[Round "9.24"]
[White "Saraci, Rinesa"]
[Black "Maras, Marija Mia"]
[Result "1-0"]
[ECO "B76"]
[WhiteElo "1503"]
[BlackElo "1051"]
[Annotator "NA RC COMBH"]
[PlyCount "135"]
[EventDate "2023.03.15"]
[EventType "swiss"]
[EventCountry "MNE"]
[SourceTitle "playchess.com"]
[Source "ChessBase"]
[SourceQuality "1"]
[TimeControl "40/5400+30:1800+30"]

1. e4 {[%emt 0:00:05]} c5 {[%emt 0:00:03]} 2. Nf3 {[%emt 0:00:10]} Nc6 {[%emt 0:00:21]} 3. d4 {[%emt 0:00:18]} cxd4 {[%emt 0:00:11]} 4. Nxd4 {[%emt 0:00:07]} g6 {[%emt 0:00:03]} 5. Nc3 {[%emt 0:00:21]} Bg7 {[%emt 0:00:08]} 6. Be3 {[%emt 0:00:21]} Nf6 {[%emt 0:00:09]} 7. f3 {[%emt 0:00:58]} O-O {[%emt 0:00:37]} 8. Qd2 {[%emt 0:01:01]} Re8 {[%emt 0:00:57]} 9. O-O-O {[%emt 0:01:18]} d6 {[%emt 0:01:41]} 10. h4 {[%emt 0:02:37]} h5 {[%emt 0:01:55]} 11. Bc4 {[%emt 0:03:08]} Ne5 {[%emt 0:02:31]} 12. Bb3 {[%emt 0:03:47]} Bd7 {[%emt 0:02:58]} 13. Bh6 {[%emt 0:03:00]} a6 {[%emt 0:07:17]} 14. Bxg7 {[%emt 0:10:19]} Kxg7 {[%emt 0:00:19]} 15. Nd5 {[%emt 0:08:54]} e6 {[%emt 0:02:43]} 16. Nf4 {[%emt 0:06:08]} Rh8 {[%emt 0:04:03]} 17. Nde2 {[%emt 0:00:58]} Ne8 {[%emt 0:00:30]} 18. Nc3 {[%emt 0:06:12]} b5 {[%emt 0:04:21]} 19. Qd4 {[%emt 0:08:02]} Qf6 {[%emt 0:01:34]} 20. Nh3 {[%emt 0:05:35]} Nc6 {[%emt 0:03:11]} 21. Qxf6+ {[%emt 0:00:58]} Kxf6 {[%emt 0:00:20]} 22. Ng5 {[%emt 0:04:21]} Ke7 {[%emt 0:02:00]} 23. Rd2 {[%emt 0:01:55]} f6 {[%emt 0:01:02]} 24. Nh3 {[%emt 0:00:29]} Na5 {[%emt 0:00:32]} 25. Rhd1 {[%emt 0:02:23]} Nxb3+ {[%emt 0:00:11]} 26. cxb3 {[%emt 0:00:21]} Rc8 {[%emt 0:00:35]} 27. Kb1 {[%emt 0:00:10]} b4 {[%emt 0:00:12]} 28. Ne2 {[%emt 0:00:45]} e5 {[%emt 0:00:26]} 29. Nf2 {[%emt 0:01:07]} Bb5 {[%emt 0:00:43]} 30. Ng3 {[%emt 0:03:33]} Rd8 {[%emt 0:01:44]} 31. Rc1 {[%emt 0:02:45]} Bd7 {[%emt 0:01:20]} 32. Nd1 {[%emt 0:02:30]} Rc8 {[%emt 0:01:07]} 33. Rc4 {[%emt 0:01:29]} Be6 {[%emt 0:00:38]} 34. Rxb4 {[%emt 0:00:48]} f5 {[%emt 0:00:55]} 35. Rb6 {[%emt 0:02:02]} fxe4 {[%emt 0:02:50]} 36. fxe4 {[%emt 0:01:29]} Ra8 {[%emt 0:04:04]} 37. Rb7+ {[%emt 0:02:29]} Kd8 {[%emt 0:00:43]} 38. Rf2 {[%emt 0:00:51]} Bc8 {[%emt 0:01:57]} 39. Rbf7 {[%emt 0:01:05]} Rb8 {[%emt 0:03:14]} 40. Nc3 {[%emt 0:00:00]} Rb7 {[%emt 0:00:00]} 41. R7f3 {[%emt 0:07:24]} Bg4 {[%emt 0:05:15]} 42. Rd3 {[%emt 0:00:52]} Rhh7 {[%emt 0:02:05]} 43. Nd5 {[%emt 0:01:22]} Rhf7 {[%emt 0:03:15]} 44. Rdd2 {[%emt 0:00:33]} Be6 {[%emt 0:02:57]} 45. Nc3 {[%emt 0:04:11]} Rxf2 {[%emt 0:00:54]} 46. Rxf2 {[%emt 0:00:06]} Rf7 {[%emt 0:00:17]} 47. Rxf7 {[%emt 0:02:41]} Bxf7 {[%emt 0:00:02]} 48. Kc2 {[%emt 0:00:34]} Nc7 {[%emt 0:00:20]} 49. Nge2 {[%emt 0:01:04]} Nb5 {[%emt 0:00:34]} 50. Nxb5 {[%emt 0:00:26]} axb5 {[%emt 0:00:02]} 51. Kc3 {[%emt 0:00:20]} Kc7 {[%emt 0:00:18]} 52. Kb4 {[%emt 0:00:35]} Kb6 {[%emt 0:00:06]} 53. Nc3 {[%emt 0:00:36]} Be8 {[%emt 0:00:05]} 54. g3 {[%emt 0:00:23]} Ka6 {[%emt 0:00:39]} 55. a4 {[%emt 0:00:45]} bxa4 {[%emt 0:00:21]} 56. bxa4 {[%emt 0:00:11]} Bd7 {[%emt 0:00:33]} 57. Nb5 {[%emt 0:00:52]} Bxb5 {[%emt 0:00:16]} 58. axb5+ {[%emt 0:00:05]} Kb6 {[%emt 0:00:04]} 59. Kc4 {[%emt 0:00:07]} Kc7 {[%emt 0:00:31]} 60. Kd5 {[%emt 0:00:07]} Kb6 {[%emt 0:03:26]} 61. Kxd6 {[%emt 0:00:08]} Kxb5 {[%emt 0:00:34]} 62. Kxe5 {[%emt 0:00:08]} Kc6 {[%emt 0:00:12]} 63. Ke6 {[%emt 0:00:33]} Kc5 {[%emt 0:00:38]} 64. e5 {[%emt 0:00:25]} Kd4 {[%emt 0:00:14]} 65. Kf6 {[%emt 0:00:09]} Kd5 {[%emt 0:00:09]} 66. e6 {[%emt 0:00:08]} Kd6 {[%emt 0:00:11]} 67. e7 {[%emt 0:00:13]} Kd7 {[%emt 0:00:13]} 68. Kf7 {[%emt 0:00:06]} 1-0

[Event "European Women-ch 2023"]
[Site "Petrovac"]
[Date "2023.03.27"]
[Round "9.25"]
[White "Pogorelskikh, Sofia"]
[Black "Fataliyeva, Ulviyya"]
[Result "0-1"]
[ECO "B07"]
[WhiteElo "2102"]
[BlackElo "2427"]
[Annotator "TA"]
[PlyCount "62"]
[EventDate "2023.03.15"]
[EventType "swiss"]
[EventCountry "MNE"]
[SourceTitle "playchess.com"]
[Source "ChessBase"]
[SourceQuality "1"]
[TimeControl "40/5400+30:1800+30"]

{[%evp 9,62,39,54,7,22,27,22,19,12,0,43,22,34,17,0,17,50,-33,-38,-28,0,-66,-52,-143,-128,-113,-124,-106,-72,-125,-132,-206,-176,-266,-274,-330,-298,-381,-381,-372,-372,-361,-317,-512,-508,-496,-488,-818,-752,-5635,-5260,-1451,-2366,-29986,-673]} 1. e4 {[%emt 0:00:02]} d6 {[%emt 0:01:24]} 2. d4 {[%emt 0:00:31]} Nf6 {[%emt 0:00:05]} 3. Nc3 {[%emt 0:00:33]} g6 {[%emt 0:00:06]} 4. Be3 {[%emt 0:02:58]} a6 {[%emt 0:00:04]} 5. Qd2 {[%emt 0:07:40]} b5 {[%emt 0:00:03]} 6. Bd3 {[%emt 0:02:37] B07: Pirc Defence: Miscellaneous Systems.} (6. f3 $14 {was preferrable.}) 6... Bb7 {[%emt 0:01:04]} 7. f3 {[%emt 0:00:51]} Nbd7 {[%emt 0:00:11]} 8. a4 {[%emt 0:07:26] The position is equal.} b4 {[%emt 0:01:46]} 9. Nce2 {[%emt 0:02:02]} a5 {[%emt 0:01:31]} 10. g4 {[%emt 0:02:34]} Nb6 {[%emt 0:01:05] [#]} 11. g5 $146 {[%emt 0:16:21]} ({Predecessor:} 11. c4 bxc3 12. bxc3 Bg7 13. g5 Nh5 14. Ng3 Nxg3 15. hxg3 Qc8 16. Rb1 Ba6 17. Qe2 Bxd3 18. Qxd3 {1-0 Davidov,S (2326)-Beim,V (2516) EU Maccabi Games 12th 2007 (7)}) 11... Nfd7 {[%emt 0:00:30]} 12. h4 {[%emt 0:00:42]} c5 {[%emt 0:02:04] ...c4 would be deadly.} 13. dxc5 {[%emt 0:05:58]} ({Better is} 13. Bb5 $1 $14 Ba6 14. dxc5 dxc5 15. Qd3) 13... dxc5 $15 {[%emt 0:00:10]} 14. Bb5 {[%emt 0:01:11]} Qc7 {[%emt 0:00:27]} 15. c3 {[%emt 0:10:34]} (15. Rd1 $11) 15... Bc6 {[%emt 0:01:27][%cal Oh7h6]} 16. cxb4 {[%emt 0:09:17]} (16. h5 $15) 16... axb4 $17 {[%emt 0:00:28] White must now prevent ...Bxb5.} 17. Rc1 {[%emt 0:04:48][%cal Oe2d4]} Bxb5 {[%emt 0:11:31]} 18. axb5 {[%emt 0:00:07]} Qd6 {[%emt 0:00:20]} (18... Bg7 {is more complex.} 19. Qxb4 Ra2 20. Bd4 Ra1) 19. Qxd6 {[%emt 0:06:13]} (19. Qc2 $142) 19... exd6 {[%emt 0:00:15]} 20. Nf4 {[%emt 0:00:54]} (20. b3 $17 {was worth a try.}) 20... Bg7 {[%emt 0:01:33][%cal Bf8g7,Bg7b2,Bb2c3][%mdl 32]} 21. Rh2 {[%emt 0:00:31]} (21. b3 $142) 21... Ra2 $19 {[%emt 0:01:19]} 22. Nd3 {[%emt 0:01:30]} Ne5 {[%emt 0:00:52]} 23. Rd1 {[%emt 0:05:23]} Nxd3+ {[%emt 0:01:25]} 24. Rxd3 {[%emt 0:00:08]} Bxb2 {[%emt 0:01:23] Threatens to win with ...Bc3+.} 25. Rc2 {[%emt 0:02:27]} Ke7 {[%emt 0:05:04]} 26. Rxc5 $2 {[%emt 0:06:41]} (26. Rb3 Ra1+ 27. Kf2) 26... dxc5 {[%emt 0:03:19]} 27. Bxc5+ {[%emt 0:00:02]} Ke6 {[%emt 0:01:07] Strongly threatening ...Bc3+.} 28. Rd6+ {[%emt 0:02:45]} (28. Bxb6 $142 Rb8 29. Be3 Rxb5 30. Ne2) 28... Ke5 {[%emt 0:00:31]} 29. Rxb6 {[%emt 0:00:26]} Bc3+ {[%emt 0:01:17]} 30. Kf1 {[%emt 0:00:23]} Rd8 {[%emt 0:01:10][%cal Rd8d1]} 31. Bf2 {[%emt 0:01:52] [#]} Rxf2+ $1 {[%emt 0:00:20][%mdl 512] Weighted Error Value: White=0.98/Black=0.08 (flawless)} 0-1

[Event "European Women-ch 2023"]
[Site "Petrovac"]
[Date "2023.03.27"]
[Round "9.26"]
[White "Abdinova, Narmin"]
[Black "Lazarne Vajda, Szidonia"]
[Result "0-1"]
[ECO "D11"]
[WhiteElo "2090"]
[BlackElo "2294"]
[Annotator "TA"]
[PlyCount "114"]
[EventDate "2023.03.15"]
[EventType "swiss"]
[EventCountry "MNE"]
[SourceTitle "playchess.com"]
[Source "ChessBase"]
[SourceQuality "1"]
[TimeControl "40/5400+30:1800+30"]

{[%evp 9,114,14,10,10,40,28,20,18,20,31,35,25,37,30,42,54,59,40,77,70,73,62,85,83,82,79,92,91,101,82,107,96,67,0,0,-8,-2,-105,-99,-161,-154,-401,-214,-225,-211,-233,-134,-326,-326,-314,-331,-321,-321,-379,-376,-412,-392,-397,-403,-387,-393,-410,-411,-393,-382,-464,-477,-470,-456,-574,-563,-559,-554,-569,-579,-597,-584,-581,-566,-550,-553,-636,-515,-634,-557,-1340,-1141,-968,-745,-898,-884,-1234,-1189,-1408,-1406,-1264,-925,-1768,-1300,-2254,-2239,-2092,-1842,-2235,-2222,-29970,-29972]} 1. d4 {[%emt 0:09:06]} d5 {[%emt 0:00:23]} 2. c4 {[%emt 0:00:10]} c6 {[%emt 0:00:16]} 3. Nf3 {[%emt 0:00:24]} Nf6 {[%emt 0:00:05]} 4. g3 {[%emt 0:00:06][%cal Bg2g3,Bg3g4,Bg4g5][%mdl 32]} Bf5 {[%emt 0:00:39]} 5. Nc3 {[%emt 0:00:33]} e6 {[%emt 0:01:25]} 6. Nh4 {[%emt 0:00:16] D11: Slav Defence: 3 Nf3 sidelines and 3...Nf6 4 e3 Bg4.} Bg4 {[%emt 0:01:50]} 7. h3 {[%emt 0:00:11]} Bh5 {[%emt 0:00:06]} 8. g4 {[%emt 0:00:03] The position is equal.} Bg6 {[%emt 0:04:59]} 9. g5 {[%emt 0:01:43]} Nfd7 {[%emt 0:01:20]} 10. Nxg6 {[%emt 0:00:10]} hxg6 {[%emt 0:00:06]} 11. e4 $36 {[%emt 0:00:06][%cal Re4d5][%mdl 2048] [#] White has good play.} dxc4 $146 {[%emt 0:01:57]} ({Predecessor:} 11... dxe4 12. a3 Rh4 13. Bg2 e5 14. Nxe4 exd4 15. Qxd4 Qa5+ 16. Bd2 Qe5 17. Qxe5+ Nxe5 {0-1 Van Foreest,L (2553)-Benitah,Y (2385) FRA-chT Top 16 Gp Basse 2022 (3.1)}) 12. Bxc4 {[%emt 0:01:34]} Nb6 {[%emt 0:01:14]} 13. Bb3 {[%emt 0:02:20]} Bd6 {[%emt 0:03:05]} 14. Be3 {[%emt 0:03:34]} N8d7 {[%emt 0:03:43]} 15. Qd2 {[%emt 0:23:14]} Qc7 {[%emt 0:01:02]} 16. O-O-O {[%emt 0:00:19]} O-O-O {[%emt 0:00:18]} 17. Kb1 {[%emt 0:00:06]} Rh4 {[%emt 0:08:47]} 18. Rc1 {[%emt 0:07:47][%cal Oc3b5] Hoping for Nb5!} a6 {[%emt 0:00:19] Prevents Nb5.} 19. Qe2 {[%emt 0:05:44]} Rdh8 {[%emt 0:07:20]} 20. e5 {[%emt 0:06:25]} Bb4 {[%emt 0:02:38]} (20... Rxh3 $2 21. exd6 Qxd6 22. Ne4 $18) 21. Qf3 {[%emt 0:00:09]} (21. d5 $1 $14) 21... Bxc3 $11 {[%emt 0:01:31]} 22. Rxc3 {[%emt 0:00:27]} Nb8 {[%emt 0:01:13]} 23. d5 {[%emt 0:05:48]} Nxd5 $17 {[%emt 0:02:02]} (23... exd5 24. Bxb6 Qxb6 25. Qxf7 $18 (25. Qxd5 Qb4 $16)) 24. Bxd5 {[%emt 0:01:43]} (24. Rcc1 $17) 24... exd5 $19 {[%emt 0:00:17]} 25. Qg3 $2 {[%emt 0:05:09]} (25. Bf4 $17 {was necessary.}) 25... Nd7 {[%emt 0:09:03]} (25... d4 $142 26. Rc4 Qd7) 26. f4 {[%emt 0:02:52] [#]} Nf8 $1 {[%emt 0:00:14][%cal Bd7f8,Bf8e6,Be6d4][%mdl 32]} 27. Bf2 {[%emt 0:08:14]} Qd7 {[%emt 0:07:28]} (27... Ne6 $19 28. Rf3 Qa5) 28. Qd3 $2 {[%emt 0:07:03] Loses the game.} (28. Qf3 $17) 28... Rxf4 {[%emt 0:00:50]} 29. Bg3 {[%emt 0:00:54]} Re4 {[%emt 0:06:18]} (29... Rxh3 30. Rxh3 Qxh3 31. Bxf4 $18) 30. h4 {[%emt 0:02:14]} Ne6 {[%emt 0:00:44]} 31. Rhc1 {[%emt 0:00:17]} Nd4 {[%emt 0:01:21] White must now prevent ...Ne2.} 32. a4 {[%emt 0:03:48]} Kd8 {[%emt 0:05:47]} 33. Re1 {[%emt 0:02:26]} Rxe1+ {[%emt 0:00:37]} 34. Bxe1 {[%emt 0:00:08]} Qf5 {[%emt 0:00:24]} 35. Ka2 {[%emt 0:00:39]} Qxd3 {[%emt 0:01:03]} (35... Qxe5 $2 36. Qd2 Nf5 37. Rb3 $19) 36. Rxd3 {[%emt 0:00:01][%mdl 4096] Endgame KRB-KRN} Nf5 {[%emt 0:00:40][%cal Oh8e8]} 37. b4 {[%emt 0:01:25]} Re8 {[%emt 0:00:47]} ({Inferior is} 37... Nxh4 38. Rh3 $15) 38. Bc3 {[%emt 0:00:54]} Nxh4 {[%emt 0:00:13]} 39. b5 {[%emt 0:00:48]} axb5 {[%emt 0:01:31]} 40. axb5 {[%emt 0:00:00]} Kd7 {[%emt 0:00:00]} 41. Kb3 {[%emt 0:00:42]} Nf5 {[%emt 0:02:45]} 42. Kb4 {[%emt 0:02:26]} Kc7 {[%emt 0:00:20]} 43. Bd2 {[%emt 0:03:00]} Rh8 {[%emt 0:00:51]} 44. bxc6 {[%emt 0:02:10]} bxc6 {[%emt 0:00:17]} 45. Kc5 {[%emt 0:01:29]} Ra8 {[%emt 0:02:44]} 46. Rb3 {[%emt 0:10:14]} Ra2 {[%emt 0:01:51]} 47. e6 {[%emt 0:07:18]} Rc2+ {[%emt 0:00:57]} 48. Kb4 {[%emt 0:00:57]} fxe6 {[%emt 0:00:26]} ({Weaker is} 48... Rxd2 49. exf7 c5+ 50. Ka4 (50. Kxc5 Nd4 $11) (50. Kc3 Nd6 $17) 50... Ra2+ 51. Ra3 $16) 49. Bf4+ {[%emt 0:00:39]} Kb6 {[%emt 0:01:06]} 50. Ka3+ {[%emt 0:00:42]} Kc5 {[%emt 0:00:21]} 51. Be5 {[%emt 0:00:10]} d4 {[%emt 0:01:00]} 52. Rb7 {[%emt 0:00:21]} Rg2 {[%emt 0:00:34]} 53. Bf4 {[%emt 0:01:19]} Kd5 {[%emt 0:00:55] [#] aiming for ...e5.} 54. Kb3 {[%emt 0:00:47]} e5 {[%emt 0:00:24]} 55. Bc1 {[%emt 0:00:24]} Rg3+ {[%emt 0:00:28]} 56. Kc2 {[%emt 0:00:37]} e4 {[%emt 0:00:11] And now ...Kc4 would win.} 57. Rd7+ {[%emt 0:00:38]} Kc4 {[%emt 0:00:07] Weighted Error Value: White=0.37/Black=0.16 (very precise)} 0-1